Cogmind - Beta 15 @@@ ROGUE MODE // 2025.07.05 @ 07:14:36 Player: beans Result: Destroyed by OA-ISK(R) with Subdweller Machine Gun Performance ------------- Evolutions (0) 0 Regions Visited (2) 400 Robots Destroyed (36) 180 Value Destroyed (646) 646 Prototype IDs (0) 0 Alien Tech Used (0) 0 Bonus (0) 0 TOTAL SCORE: 1226 Bonus ------- None Cogmind --------- Core Integrity 0/250 Matter 275/300 Energy 85/100 System Corruption 1% Temperature Cool (0) Movement Rolling (115) Ox1 Location -10/Subcaves Parts ------- > --- POWER (1) -------- (None) > --- PROPULSION (2) --- Compact Wheel > --- UTILITY (2) ------ Large Storage Unit > --- WEAPON (2) ------- Autogun > --- INVENTORY (15) --- Small Matter Pod (50) EM Shotgun EM Shotgun Medium Laser Medium Laser Light Assault Rifle Autogun Subdweller Machine Gun Grenade Launcher Peak State ------------ > --- POWER ------------ (None) > --- PROPULSION ------- Wheel Wheel > --- UTILITY ---------- Large Storage Unit Weapon Shielding > --- WEAPON ----------- Autogun Autogun > --- INVENTORY -------- EM Shotgun EM Shotgun Medium Laser Medium Laser Light Assault Rifle Autogun Grenade Launcher [Rating: 9] Favorites ----------- Power Light Ion Engine Engine Light Ion Engine Propulsion Aluminum Leg Treads Light Treads Leg Aluminum Leg Wheel Wheel Utility Large Storage Unit Storage Large Storage Unit Protection Weapon Shielding Weapon Autogun Energy Gun Medium Laser Ballistic Gun Autogun Build | -11 -10 -10 ------- Run | Yrd Mat Sub Slots Evolved . | . . . Power . | . . . Propulsion . | . . . Utility . | . . . Weapon . | . . . Parts Attached 20 | 7 12 1 Power 1 | 1 . . Engine 1 | 1 . . Core . | . . . Reactor . | . . . Propulsion 8 | 4 4 . Treads 2 | 2 . . Leg 3 | 2 1 . Wheel 3 | . 3 . Hover . | . . . Flight . | . . . Utility 2 | . 2 . Device . | . . . Storage 1 | . 1 . Processor . | . . . Hackware . | . . . Protection 1 | . 1 . Artifact . | . . . Weapon 9 | 2 6 1 Energy Gun 5 | 2 3 . Energy Cannon . | . . . Ballistic Gun 4 | . 3 1 Ballistic Cannon . | . . . Launcher . | . . . Special Weapon . | . . . Impact Weapon . | . . . Slashing Weapon . | . . . Piercing Weapon . | . . . Special Melee Weapon . | . . . Unidentified Prototypes . | . . . Parts Lost 9 | . 5 4 Power 1 | . 1 . Propulsion 4 | . 3 1 Utility 1 | . . 1 Weapon 3 | . 1 2 Highest Loss Streak 2 | . 2 2 To Critical Strikes . | . . . Average Backups 4 | . 3 9 Power . | . . . Propulsion . | . . . Utility . | . . 1 Weapon 4 | . 3 8 Tool/Special . | . . . Unused Backups 4 | . . 4 Power . | . . . Propulsion . | . . . Utility 1 | . . 1 Weapon 3 | . . 3 Tool/Special . | . . . Average Slot Usage (%) 67 | . 64 75 Leg 8 | . 11 . Wheel 10 | . 5 22 Storage 13 | . 13 14 Protection 6 | . 5 10 Energy Gun 13 | . 19 . Ballistic Gun 12 | . 6 27 Peak Build Rating 9 | 5 9 9 Average Rating 6 | 3 5 8 On Entrance 4 | . 5 9 Naked Turns . | . . . Heaviest Build 27 | 7 27 27 Greatest Support 26 | 20 26 26 Greatest Overweight (x) 8 | . 8 1 Average Overweight (x) 1 | . 2 1 Largest Inventory Capacity 15 | 5 15 15 Average Capacity 14 | 5 14 15 Most Carried 11 | 4 11 10 Average Carried 4 | . 3 9 Final Capacity 15 | 5 15 15 Final Carried 9 | . 9 9 Class Distribution -------------------- 100% | Mutant Dominant Class ---------------- Mutant | -10/Materials Mutant | -10/Subcaves Resources | -11 -10 -10 ----------- Run | Yrd Mat Sub Matter Collected 714 | 115 496 103 Remotely . | . . . Salvage Created 1073 | . 818 255 Parts 70 | . 49 21 Haulers Intercepted . | . . . Recyclers Shooed 1 | . 1 . Parts Field Recycled . | . . . Retrieved Matter . | . . . Parts Self-Destructed 11 | . . 11 Prevented . | . . . Kills | -11 -10 -10 ------- Run | Yrd Mat Sub Combat Hostiles Destroyed 18 | . 10 8 Guns 17 | . 9 8 Classes Destroyed 9 | . 8 1 Worker 5 | . 5 . Builder 5 | . 5 . Tunneler 1 | . 1 . Recycler 2 | . 2 . Operator 2 | . 2 . Watcher 3 | . 3 . Swarmer 8 | . 4 4 Grunt 6 | . 6 . Subdweller 4 | . . 4 Best Kill Streak 5 | . 5 4 Combat Bots Only 4 | . 3 4 Max Kills in Single Turn 2 | . 1 2 Gunslinging . | . . . Exploded . | . . . Melee . | . . . Uniques/NPCs Destroyed . | . . . Combat | -11 -10 -10 -------- Run | Yrd Mat Sub Hostile Shots Fired 146 | . 81 65 Missed 50 | . 25 25 Hits 96 | . 56 40 Projectile 96 | . 56 40 Part Disruptions 2 | . 2 . Actively Blocked 1 | . 1 . Damage Taken 1147 | . 677 470 Core 262 | . 166 96 Absorbed by Shields . | . . . Redirected to Shielding 54 | . 19 35 Core Remaining (%) 100 | 100 . . Volleys Fired 113 | . 97 16 Largest 2 | . 2 2 Hottest 100 | . 100 46 Shots Fired 200 | . 170 30 Gun 200 | . 170 30 Cannon . | . . . Launcher . | . . . Special . | . . . Kinetic 60 | . 30 30 Thermal 96 | . 96 . Explosive . | . . . Electromagnetic 44 | . 44 . Robot Hit Streak 16 | . 11 16 Robot Miss Streak 5 | . 5 2 Penetration Max . | . . . Secondary Targets 2 | . 2 . Max Gunslinging Chain 1 | . 1 . Shots Hit Robots 97 | . 75 22 Core Hits 48 | . 36 12 Critical Kills . | . . . Critical Parts Destroyed . | . . . Critical Strikes 5 | . 5 . Burn 4 | . 4 . Corrupt 1 | . 1 . Melee Attacks . | . . . Impact . | . . . Slashing . | . . . Piercing . | . . . Sneak Attacks . | . . . Combat Hostiles . | . . . Follow-up Attacks . | . . . Damage Inflicted 1583 | . 1236 347 Guns 1440 | . 1093 347 Cannons . | . . . Explosions 143 | . 143 . Melee . | . . . Ramming . | . . . Kinetic 473 | . 126 347 Thermal 673 | . 673 . Explosive . | . . . Electromagnetic 437 | . 437 . Impact . | . . . Slashing . | . . . Piercing . | . . . Highest Corruption 1 | . 1 1 Average Corruption 1 | . 1 1 Corruption Purged . | . . . Corruption Blocked . | . . . Effects 22 | . 18 4 Message Errors 6 | . 5 1 Matter Fused 6 | . 4 2 Heat Flow Errors 2 | . 2 . Energy Discharges 6 | . 6 . Data Loss (minor) 1 | . 1 . Data Loss (major) 1 | . . 1 Overload Shots . | . . . Overflow Damage . | . . . Projectiles . | . . . Explosions . | . . . Melee . | . . . Knockbacks . | . . . Impact . | . . . Kinetic . | . . . Secondary . | . . . Self-Inflicted Damage 75 | . 75 . Shots 4 | . 4 . Rammed . | . . . Targets Rammed . | . . . Kicked . | . . . Crushed . | . . . Highest Temperature 270 | . 270 . Average Temperature 50 | . 50 . Received Heat Transfer 324 | . 210 114 Siege Activations . | . . . Martial Activations . | . . . Shielding Activations . | . . . Robots Disrupted . | . . . Combat Hostiles . | . . . Robots Corrupted . | . . . Combat Hostiles . | . . . Parts Fried 3 | . 3 . Impact Corruptions . | . . . Robots Melted 1 | . 1 . Combat Hostiles 1 | . 1 . Parts Melted 3 | . 3 . Heat Transferred 2172 | . 2172 . Parts Sabotaged . | . . . Parts Stolen . | . . . Parts Stripped . | . . . Power Chain Reactions 3 | . 3 . Alert | -11 -10 -10 ------- Run | Yrd Mat Sub Maximum Alert Level . | . . . Low Security (%) 100 | 100 100 . Level 1 . | . . . Level 2 . | . . . Level 3 . | . . . Level 4 . | . . . Level 5 . | . . . High Security . | . . . Max Security . | . . . Peak Influence 80 | . 80 . Initial . | . . . Average 16 | . 17 . Influence Increases 659 | . 459 200 Destroy 0b10 Robot/C 280 | . 200 80 Destroy 0b10 Robot/NC 90 | . 90 . Destroy Leader 56 | . 56 . Disable Machine 90 | . 90 . Destroy Structure 8 | . 8 . Lose Combat Pursuer 135 | . 15 120 Influence Decreases 659 | . 441 218 Entered New Map 10 | . . 10 Time Decay 618 | . 410 208 Lost Part 31 | . 31 . Squads Dispatched 3 | . 3 . Investigation 1 | . 1 . Extermination . | . . . Reinforcement 2 | . 2 . Assault . | . . . Garrison . | . . . Intercept . | . . . Searches Triggered . | . . . Construction Impeded . | . . . Haulers Reinforced . | . . . Active Scanning Responses . | . . . Cargo Convoy Interrupts . | . . . Stealth | -11 -10 -10 --------- Run | Yrd Mat Sub Distress Signals . | . . . Communications Jammed . | . . . Distress Signals . | . . . Times Spotted 25 | . 16 9 Peak Tracking Total 6 | . 3 6 Tactical Retreats 4 | . 1 3 Traps | -11 -10 -10 ------- Run | Yrd Mat Sub Traps Triggered 5 | . 5 . Indirectly 2 | . 2 . Trap Hack Attempts . | . . . Triggered . | . . . Disarmed . | . . . Reprogrammed . | . . . Reused . | . . . Traps Extracted . | . . . Installed . | . . . Triggered . | . . . Machines | -11 -10 -10 ---------- Run | Yrd Mat Sub Machines Disabled 6 | . 6 . Max in Single Turn 2 | . 2 . Machines Repaired . | . . . Machines Dismantled . | . . . Machines Sabotaged . | . . . Overloaded Fab Kills . | . . . Hacking | -11 -10 -10 --------- Run | Yrd Mat Sub Machines Accessed . | . . . Terminals . | . . . Fabricators . | . . . Repair Stations . | . . . Recycling Units . | . . . Scanalyzers . | . . . Garrison Access . | . . . Total Hacks . | . . . Successful . | . . . Failed . | . . . Catastrophic . | . . . Database Lockouts . | . . . Manual . | . . . Terminals . | . . . Fabricators . | . . . Repair Stations . | . . . Recycling Units . | . . . Scanalyzers . | . . . Garrison Access . | . . . Terminal Hacks . | . . . Fabricator Hacks . | . . . Repair Station Hacks . | . . . Recycling Unit Hacks . | . . . Scanalyzer . | . . . Garrison Access Hacks . | . . . Unauthorized Hacks . | . . . Terminals . | . . . Fabricators . | . . . Repair Stations . | . . . Recycling Units . | . . . Scanalyzers . | . . . Garrison Access . | . . . Data Cores Recovered . | . . . Used . | . . . Hacking Detections . | . . . Full Trace Events . | . . . Feedback Events . | . . . Feedback Blocked . | . . . Robot Schematics Acquired . | . . . Robots Built . | . . . Authchips . | . . . Time . | . . . Total Robot Build Rating . | . . . Part Schematics Acquired . | . . . Parts Built . | . . . Authchips . | . . . Time . | . . . Total Part Build Rating . | . . . Parts Repaired . | . . . Time . | . . . Parts Recycled . | . . . Recycled Matter . | . . . Retrieved Matter . | . . . Retrieved Components . | . . . Parts Scanalyzed . | . . . Part Schematics Acquired . | . . . Parts Damaged . | . . . Bothacking | -11 -10 -10 ------------ Run | Yrd Mat Sub Used RIF Installer . | . . . Robots Hacked . | . . . Non-combat . | . . . Combat . | . . . Robot Hacks Applied . | . . . Relay Couplers Released . | . . . Fabnet Peak Effective % . | . . . Robots Rewired . | . . . Allies Hacked . | . . . Hacks Repelled . | . . . Allies | -11 -10 -10 -------- Run | Yrd Mat Sub Total Allies . | . . . Largest Group . | . . . Highest-Rated Group . | . . . Highest-Rated Ally . | . . . Total Orders . | . . . Ally Attacks . | . . . Total Damage . | . . . Kills . | . . . Allies Corrupted . | . . . Allies Melted . | . . . Intel | -11 -10 -10 ------- Run | Yrd Mat Sub Active Infowar (turns) . | . . . Robot Analysis Total . | . . . Derelict Logs Recovered . | . . . Drone Launches . | . . . Drone Recoveries . | . . . Exploration | -11 -10 -10 ------------- Run | Yrd Mat Sub Turns Passed 2690 | 70 1873 747 Spaces Moved 1388 | 43 776 569 Core 145 | 14 131 . Treads . | . . . Legs 319 | 29 290 . Wheels 924 | . 355 569 Hover . | . . . Flight . | . . . Fastest Speed 50 | 50 95 105 Average Speed 152 | 97 188 108 Slowest Speed 450 | 120 450 115 Overloaded Moves . | . . . Propulsion Burnouts . | . . . Robots Hopped . | . . . Potential Cave-ins . | . . . Cave-ins Triggered . | . . . Exploration Rate (%) 39 | 3 87 27 Regions Visited 2 Branch Regions 1 Pre-discovered Areas . | . . . Known Exits Taken . | . . . Unknown Exits Taken 2 | 1 1 . Scrap Searched . | . . . Spaces Dug . | . . . Terrain Destroyed 6 | . 6 . Melee . | . . . Projectile . | . . . AOE 6 | . 6 . Terrain Rammed . | . . . Walls Destroyed . | . . . Machines Disabled . | . . . Actions | -11 -10 -10 --------- Run | Yrd Mat Sub Total 1764 | 71 1019 674 Wait 213 | 13 113 87 Move 1386 | 42 775 569 Hop . | . . . Pick Up 27 | 7 19 1 Fast Attach . | . . . Attach 16 | 5 10 1 Detach . | . . . Swap 7 | 2 5 . Drop 2 | 2 . . Fire 113 | . 97 16 Melee . | . . . Ram . | . . . Kick . | . . . Crush . | . . . Escape Stasis . | . . . Rewire . | . . . Trap . | . . . Miscellaneous . | . . . Route ------- -11/Scrapyard -10/Materials (discovered 5 exits: [*Mat x3] / [*Min] / [*Sub]) -10/Subcaves History --------- Turn | Location | Event 4 | -11/Scrapyard | Discovered new exit (range 15) 71 | -11/Scrapyard | Entered Materials 310 | -10/Materials | Build established: Mutant 419 | -10/Materials | Discovered new exit (range 10) 571 | -10/Materials | Derelicts attacked the area 1197 | -10/Materials | Discovered new exit (range 16) 1205 | -10/Materials | Core integrity fell below 50% 1581 | -10/Materials | Discovered new exit (range 16) 1629 | -10/Materials | Discovered new exit (range 6) 1935 | -10/Materials | Discovered new exit (range 8) 1944 | -10/Materials | Entered Subcaves 1945 | -10/Subcaves | Approached by a straggling Scientist 2245 | -10/Subcaves | Core integrity fell below 20% 2691 | -10/Subcaves | Destroyed by OA-ISK(R) with Subdweller Machine Gun Last Messages --------------- Wheel destroyed. PP-R7S(R) destroyed. Acquired 11 matter. Acquired 8 matter. AN-ZRT(R) destroyed. Acquired 8 matter. Subatomizers dissect the Sub. Optics. System corrupted: Matter fused (-8). System corrupted: Matter fused (-10). Weapon Shielding destroyed. 65-B3Z(R) destroyed. Acquired 44 matter. Acquired Sub. Machine Gun. Subatomizers dissect the Sub. Optics. System corrupted: Substantial component data lost. Subatomizers dissect the Sub. Power Source. Autogun destroyed. IM-0ZY(R) destroyed. Autogun destroyed. Map ----- +----------------------------------------------------+ | ????????????????????????????????????????????? | | ????????????????????????????????????????????? | | ????????????????????????????????????????????? | | ????????????????????????????????????????????? | | ????????????????????????????????????????????? | | ????????????????????????????????????????????? | | ????????????????????????????????????????????? | | ????????????????????????????????????????????? | | ????????????????????????????????????????????? | | ????????????????????????????????????????????? | | ???????????????? ???????????????????????????? | | ???????????????# ?????????????????????????? | | ??????????????? ??"""#??????????????????? | | ???????????????# ?? ##?????????????????? | | ???????????????# ??? "#?????????????????? | | ???????????????# ??? "?????????????????? | | ???????????????# ???# "?????????????????? | | ???????????????# ??## #?#""?????????????? | | ???????????????# ??# ##" ??????????????? | | ???????????????# #??? ???????????????? | | ??????????????## ##?## ????????????????? | | ??????????????# #?# #?????????????????? | | ??????????????# #?# #??????????????????? | | ???????????????# #?## ##???############### | | ??????????????##!%*### ##### """ | | ??????????????# &R @ " """"" | | ??????????????# " ## " " | | ??????????????# ###### " ### | | ??????????????# ##????## ##?## | | ??????????????## #??????### ##???### | | ???????????????# #????????###??????# | | ???????????????# #?????????????????## | | ???????????????## #??????????????????### | | ????????????????## #???????????????????# | | ?????????????????# #???????????????????# | | ?????????????????# ##????????????????#### | | ????????????????? ##?????????????????# | | ????????????????# ##??????????????????# | | ????????????????# ###????????????????##### | | ????????????????###?????????####????### ### | | ?????????????????###????????# ###### | | ?????????????????# ##?????## ## | | ?????????????????# ###???# | | ??????????????????# ##?## | | ??????????????????# ### | | ???????????????????# | | ???????????????????# | | ???????????????????# ## | | ???????????????????# ##### | | ????????????????#### ## ## ## ##???# | +----------------------------------------------------+ Best States ------------- Heat Dissipation 25 Energy Generation 10 Energy Capacity 125 Matter Stores 300 Matter Capacity 300 Sight Range 16 Terrain Scan Density 10 Weapon Shielding 33 Evasion (%) 55 Item Schematics ----------------- None Robot Schematics ------------------ None Fabricated ------------ Nothing Repaired ---------- Nothing Alien Tech Used ----------------- None Achievements -------------- None Challenges ------------ None Game ------ Seed WeldingCooledHarness Manual? 0 Play Time 00:15:32 Cumulative 39.7 hours Start 2025.07.05 @ 07:01:47 End 2025.07.05 @ 07:14:36 Sessions 1 Manual Loads 0 Difficulty Rogue Special Mode None Game No. 188 Rogue 188 Adventurer 0 Explorer 0 Win Type - Total 0 Types 0/0/0/0/0/0/0/0/0/0 Lore% 29 Gallery% 24 Achievement% 20 Wizard Run 0 Options --------- Layout 2 ASCII 0 Keyboard 0 Movement Mouse Keybinds 0 Fullscreen 1 Font 24/Smallcaps Map View 50x44 Zoom Use 0% Tactical HUD 0 Map Filters NONE Filters NONE Steam 1 RUN: 66fd3332-7e9d-4a72-abfb-0623cb3b8a83